bitfinex-derivatives/quotes_BTCF0:USTF0_20250327
["timestamp","ask_amount","ask_price","bid_price","bid_amount"]
[1743090518822,0.27378807,86835.0,86834.0,0.1160229]
[1743090520312,0.15860647,86835.0,86834.0,0.1160229]
[1743090520512,0.01610647,86835.0,86834.0,0.3794229]
[1743090520713,0.00985934,86835.0,86834.0,0.3794229]
[1743090520917,0.00084,86835.0,86834.0,0.3794229]
[1743090521119,0.01009656,86835.0,86834.0,0.3794229]
[1743090521317,0.01009656,86835.0,86834.0,0.7402229]
[1743090521622,0.56486683,86854.0,86853.0,0.1151577]
[1743090521924,0.36164,86854.0,86853.0,0.1160777]
[1743090522222,0.36164,86854.0,86853.0,0.2585777]
[1743090523517,0.4767964,86854.0,86853.0,0.2585777]
[1743090523719,0.36164,86854.0,86853.0,0.2585777]
[1743090523921,0.36776635,86854.0,86853.0,0.2585777]
[1743090524916,0.00696635,86854.0,86853.0,0.2585777]
[1743090525927,0.00084,86854.0,86853.0,0.2585777]
[1743090526119,0.139,86857.0,86856.0,0.1151538]
[1743090526316,0.139,86857.0,86856.0,0.1159938]
[1743090526516,0.13984,86857.0,86856.0,0.2654938]
[1743090526723,0.13984,86857.0,86856.0,0.27738715]
[1743090527316,0.06804,86857.0,86856.0,0.27738715]
[1743090527524,0.00084,86857.0,86856.0,0.27738715]
[1743090527719,0.0771,86862.0,86859.0,0.0575742]
[1743090527911,0.17080809,86863.0,86862.0,0.1151458]
[1743090528118,0.1719281,86863.0,86862.0,0.2366258]
[1743090528317,0.3298281,86863.0,86862.0,0.2819658]
[1743090528626,0.3298281,86863.0,86862.0,0.4022858]
[1743090529127,0.15902001,86863.0,86862.0,0.4022858]
[1743090529329,0.23592001,86863.0,86862.0,0.4022858]
[1743090536830,0.15902001,86863.0,86862.0,0.4021658]
[1743090538934,0.16790481,86863.0,86862.0,0.2364258]
[1743090539120,0.24530481,86863.0,86862.0,0.2364258]
[1743090539726,0.2452885,86863.0,86862.0,0.2364258]
[1743090540631,0.00017275,86871.0,86870.0,0.1151352]
[1743090540924,0.00161275,86871.0,86870.0,0.1165752]
[1743090541125,0.00161275,86871.0,86870.0,0.2764752]
[1743090541325,0.01050307,86871.0,86870.0,0.2764752]
[1743090542129,0.12563697,86871.0,86870.0,0.00144]
[1743090542326,0.1151524,86857.0,86856.0,0.01144225]
[1743090542523,0.37037032,86857.0,86856.0,0.1151538]
[1743090542718,0.37037032,86857.0,86856.0,0.1165938]
[1743090543633,0.37037032,86857.0,86856.0,0.2675938]
[1743090543834,0.37037032,86857.0,86856.0,0.27918492]
[1743090544027,0.37037032,86857.0,86856.0,0.12818492]
[1743090544227,0.48552272,86857.0,86856.0,0.00144]
[1743090544532,0.50032661,86857.0,86856.0,0.00144]
[1743090544833,0.1151577,86853.0,86852.0,0.0575792]
[1743090545034,0.14075745,86853.0,86852.0,0.1727355]
[1743090545232,0.2991338,86853.0,86852.0,0.1741755]
[1743090546326,0.29928644,86853.0,86852.0,0.1741755]
[1743090546527,0.27497405,86853.0,86852.0,0.1741755]
[1743090546727,0.18422039,86853.0,86852.0,0.1741755]
[1743090547430,0.29937809,86853.0,86852.0,0.1741755]
[1743090547636,0.18422039,86853.0,86852.0,0.1741755]
[1743090548227,0.29937809,86853.0,86852.0,0.1741755]
[1743090548429,0.29918697,86853.0,86852.0,0.1741755]
[1743090548627,0.16912901,86853.0,86852.0,0.1741755]
[1743090549234,0.28428671,86853.0,86852.0,0.1741755]
[1743090549930,0.28428671,86853.0,86852.0,0.00144]
[1743090550136,0.1151697,86844.0,86837.0,8e-05]
[1743090550324,0.1151697,86844.0,86830.0,0.00879065]
[1743090550325,0.1727794,86835.0,86834.0,0.115179]
[1743090550525,0.54420321,86835.0,86834.0,0.116699]
[1743090550737,0.55920879,86835.0,86834.0,0.116619]
[1743090551432,0.56550054,86835.0,86834.0,0.116619]
[1743090552237,0.39272114,86835.0,86834.0,0.116619]
[1743090552434,0.37771556,86835.0,86834.0,0.279219]
[1743090552840,0.01691556,86835.0,86834.0,0.280219]
[1743090553341,0.00144,86835.0,86834.0,0.280219]
[1743090553729,0.00144,86835.0,86834.0,0.117619]
[1743090553929,0.12565174,86835.0,86834.0,0.117619]
[1743090554235,0.12565146,86835.0,86834.0,0.117619]
[1743090554440,0.28495146,86835.0,86834.0,0.117619]
[1743090555541,0.28495146,86835.0,86834.0,0.1176229]
[1743090555834,0.16976986,86835.0,86834.0,0.1161829]
[1743090556030,0.28495146,86835.0,86834.0,0.1176229]
[1743090556232,0.28495146,86835.0,86834.0,0.1166229]
[1743090556639,0.16074,86835.0,86834.0,0.1166229]
[1743090556829,0.16074,86835.0,86834.0,0.2729229]
[1743090557434,0.00144,86835.0,86834.0,0.2729229]
[1743090557637,0.00144,86835.0,86834.0,0.35353581]
[1743090559226,0.00017275,86843.0,86842.0,0.1151723]
[1743090559429,0.00161275,86843.0,86842.0,0.2368123]
[1743090559625,0.00161275,86843.0,86842.0,0.31742521]
[1743090559832,0.1019719,86845.0,86844.0,0.1151697]
[1743090560041,0.1019719,86845.0,86844.0,0.2724097]
[1743090560337,0.3608,86854.0,86853.0,0.1151577]
[1743090560640,0.36148,86854.0,86853.0,0.19721061]
[1743090560932,0.36148,86854.0,86853.0,0.43621061]
[1743090562030,0.00068,86854.0,86853.0,0.43621061]
[1743090563348,0.3608,86877.0,86861.0,0.0575731]
[1743090563544,0.0766,86875.0,86872.0,0.1151326]
[1743090563743,0.0766,86875.0,86872.0,0.19738551]
[1743090564239,0.3608,86877.0,86876.0,0.1151273]
[1743090564441,0.3608,86877.0,86876.0,0.1167673]
[1743090564941,0.0801,86879.0,86878.0,0.1151246]
[1743090565145,0.0801,86879.0,86878.0,0.1167646]
[1743090565341,0.16999865,86883.0,86882.0,0.1151193]
[1743090565643,0.16999865,86883.0,86882.0,0.1167593]
[1743090565844,0.25009865,86883.0,86882.0,0.19737221]
[1743090566145,0.16999865,86883.0,86882.0,0.19737221]
[1743090566944,0.00017275,86885.0,86884.0,0.1151167]
[1743090567442,0.00017275,86885.0,86884.0,0.19572961]
[1743090567635,0.00017275,86885.0,86884.0,0.37408265]
[1743090568747,0.00017275,86885.0,86884.0,0.35922961]
[1743090569240,5e-08,86885.0,86884.0,0.72002961]
[1743090569745,5e-08,86885.0,86884.0,0.87002961]
[1743090571448,0.0004,86910.0,86909.0,0.1150835]
[1743090571650,0.0004,86910.0,86909.0,0.2366835]
[1743090571947,0.0004,86910.0,86909.0,0.31729641]
[1743090572932,0.0004,86910.0,86909.0,0.31893641]
[1743090573139,0.0004,86910.0,86909.0,0.33038866]
[1743090573745,0.0004,86910.0,86909.0,0.20878866]
[1743090573936,0.0004,86910.0,86909.0,0.33054866]
[1743090578152,0.0004,86910.0,86909.0,0.20878866]
[1743090578350,0.0004,86910.0,86909.0,0.33038866]
[1743090579847,0.0004,86910.0,86909.0,0.20878866]
[1743090580045,0.0004,86910.0,86909.0,0.33046866]
[1743090581144,0.0004,86910.0,86909.0,0.48966866]
[1743090582254,0.0004,86910.0,86909.0,0.33034866]
[1743090584156,0.0004,86910.0,86909.0,0.48724866]
[1743090585558,0.0004,86910.0,86909.0,0.48716866]
[1743090587556,0.0004,86910.0,86909.0,0.48116866]
[1743090588059,0.0004,86910.0,86909.0,0.32402866]
[1743090590752,0.0004,86910.0,86909.0,0.20278866]
[1743090590955,0.2750822,86910.0,86909.0,0.20278866]
[1743090591156,0.16,86910.0,86909.0,0.20278866]
[1743090595060,0.2750822,86910.0,86909.0,0.20278866]
[1743090595961,0.16,86910.0,86909.0,0.20278866]
[1743090596263,0.2750822,86910.0,86909.0,0.20278866]
[1743090597473,0.2750822,86910.0,86909.0,0.08225291]
[1743090597770,0.2750822,86910.0,86909.0,0.08061291]
[1743090597967,0.2750822,86910.0,86909.0,0.08233291]
[1743090598261,0.0575448,86905.0,86901.0,0.11526654]
[1743090598468,0.4758928,86902.0,86901.0,0.23199894]
[1743090598866,0.6385928,86902.0,86901.0,0.23199894]
[1743090599760,0.6385928,86902.0,86901.0,0.23299894]
[1743090600560,0.6385928,86902.0,86896.0,0.1151808]
[1743090600561,0.1150994,86897.0,86896.0,0.1151808]
[1743090600872,0.11633941,86897.0,86896.0,0.1162608]
[1743090601070,0.7216,86902.0,86901.0,0.1150941]
[1743090601258,0.8366928,86902.0,86901.0,0.1150941]
[1743090601459,0.8366928,86902.0,86901.0,0.1958941]
[1743090601770,0.9144928,86902.0,86901.0,0.1958941]
[1743090602264,0.4386,86902.0,86901.0,0.1958941]
[1743090602454,0.6339928,86902.0,86901.0,0.2723941]
[1743090603561,0.4758928,86902.0,86901.0,0.2723941]
[1743090603760,0.3608,86902.0,86901.0,0.2723941]
[1743090604054,0.3608,86902.0,86901.0,0.3925941]
[1743090604459,0.2322,86912.0,86909.0,0.1150835]
[1743090604667,0.3608,86916.0,86909.0,0.1150835]
[1743090604974,0.4183375,86916.0,86909.0,0.1150835]
[1743090605163,0.1150968,86899.0,86889.0,0.0575547]
[1743090605468,0.1726517,86898.0,86897.0,0.1150981]
[1743090605765,0.2322,86898.0,86897.0,0.1150981]
[1743090605969,0.3608,86906.0,86905.0,0.1150888]
[1743090606170,0.3608,86906.0,86905.0,0.1916888]
[1743090606355,0.3608,86906.0,86905.0,0.2757088]
[1743090608075,0.13649389,86909.0,86908.0,0.1150849]
[1743090608274,0.13649389,86909.0,86908.0,0.1166449]
[1743090608461,0.13649389,86909.0,86908.0,0.2745449]
[1743090608862,0.0004,86910.0,86909.0,0.1150835]
[1743090609062,0.0004,86910.0,86909.0,0.2745435]
[1743090610864,0.0004,86910.0,86909.0,0.3946635]
[1743090611371,0.17038564,86919.0,86912.0,0.1150796]
[1743090611564,0.17038564,86919.0,86918.0,0.1150716]
[1743090611766,0.17038564,86919.0,86918.0,0.1166316]
[1743090611968,0.17038564,86919.0,86918.0,0.3951116]
[1743090612560,0.0778,86920.0,86918.0,0.3951116]
[1743090612776,0.192869,86920.0,86919.0,0.1150703]
[1743090613071,0.0778,86920.0,86919.0,0.1166703]
[1743090613283,0.0778,86920.0,86919.0,0.2771703]
[1743090613772,0.192869,86920.0,86919.0,0.1166703]
[1743090614169,0.192869,86920.0,86919.0,0.12853798]
[1743090614475,0.0778,86920.0,86919.0,0.12853798]
[1743090614776,0.0778,86920.0,86919.0,0.28903798]
[1743090615070,0.0788,86920.0,86919.0,0.28903798]
[1743090616469,0.001,86920.0,86919.0,0.28903798]
[1743090616872,0.001,86920.0,86919.0,0.40923798]
[1743090621476,0.001,86920.0,86919.0,0.28903798]
[1743090621679,0.001,86920.0,86919.0,0.40915798]
[1743090625080,0.001,86920.0,86919.0,0.28903798]
[1743090625380,0.001,86920.0,86919.0,0.40915798]
[1743090625776,0.00017264,86927.0,86920.0,0.0575398]
[1743090625977,0.00017264,86927.0,86926.0,0.1150725]
[1743090626169,0.00017264,86927.0,86926.0,0.1166725]
[1743090626379,0.00017264,86927.0,86926.0,0.28286216]
[1743090626574,0.00017264,86927.0,86926.0,0.40298216]
[1743090628985,0.00017264,86927.0,86926.0,0.83858216]
[1743090630088,0.00017264,86927.0,86926.0,0.76378216]
[1743090630902,0.17038564,86940.0,86939.0,0.1150553]
[1743090631188,0.17038564,86940.0,86939.0,0.5974553]
[1743090631389,0.17038564,86940.0,86939.0,0.7504553]
[1743090632187,0.0004,86958.0,86944.0,0.1150487]
[1743090632375,0.2323,86954.0,86944.0,0.12813712]
[1743090632992,0.2323,86954.0,86944.0,0.28113712]
[1743090634694,0.2323,86954.0,86944.0,0.40121712]
[1743090635589,0.2323,86954.0,86953.0,0.1150368]
[1743090635792,0.0004,86958.0,86957.0,0.1150315]
[1743090636091,0.28629861,86974.0,86973.0,0.1150104]
[1743090636290,0.64709861,86974.0,86973.0,0.1165304]
[1743090636881,0.28629861,86974.0,86973.0,0.1165304]
[1743090637488,0.24602412,86974.0,86973.0,0.1165304]
[1743090637687,0.36103312,86974.0,86973.0,0.1165304]
[1743090637885,0.36103312,86974.0,86973.0,0.01293631]
[1743090638081,0.36103312,86974.0,86973.0,0.12794671]
[1743090638289,0.36103312,86974.0,86973.0,0.12642671]
[1743090638880,0.24602412,86974.0,86973.0,0.12794671]
[1743090639692,0.51403312,86974.0,86973.0,0.12794671]
[1743090639880,0.39902412,86974.0,86973.0,0.12794671]
[1743090640590,0.39902412,86974.0,86973.0,0.20444671]
[1743090640996,0.2343,86974.0,86973.0,0.20444671]
[1743090644792,0.2343,86974.0,86973.0,0.12794671]
[1743090646398,0.2343,86974.0,86973.0,0.28184671]
[1743090648000,8e-05,86978.0,86977.0,0.1150051]
[1743090648296,8e-05,86978.0,86977.0,0.2704251]
[1743090648499,0.00016,86979.0,86978.0,0.1150037]
[1743090648694,0.00016,86979.0,86978.0,0.2366037]
[1743090648900,0.00016,86979.0,86978.0,0.3784037]
[1743090649397,0.1472,86989.0,86982.0,0.0574987]
[1743090649701,0.1472,86989.0,86988.0,0.1149905]
[1743090649901,0.1472,86989.0,86988.0,0.1165105]
[1743090650699,0.1472,86989.0,86988.0,0.12823781]
[1743090650895,0.1472,86989.0,86988.0,0.27003781]
[1743090651095,0.2185,86989.0,86988.0,0.27003781]
[1743090652896,0.1472,86989.0,86988.0,0.27003781]
[1743090653099,0.0004,86990.0,86989.0,0.1149892]
[1743090653301,0.0004,86990.0,86989.0,0.1165092]
[1743090653496,0.0004,86990.0,86989.0,0.2585092]
[1743090656201,0.0004,86990.0,86989.0,0.6193092]
[1743090657199,8e-05,86994.0,86993.0,0.1149839]
[1743090657505,8e-05,86994.0,86993.0,0.1165039]
[1743090657806,8e-05,86994.0,86993.0,0.2637039]
[1743090658194,0.07628,86994.0,86993.0,0.2637039]
[1743090658399,0.0762,86994.0,86993.0,0.2637039]
[1743090658592,0.08059994,86994.0,86993.0,0.2637039]
[1743090660401,0.00439994,86994.0,86993.0,0.2637039]
[1743090661508,0.18948254,86994.0,86993.0,0.00152]
[1743090661809,0.07449994,86994.0,86993.0,0.1165039]
[1743090662103,0.15159994,86994.0,86993.0,0.1165039]
[1743090662298,0.15159994,86994.0,86993.0,0.2574039]
[1743090663099,0.1472,86994.0,86993.0,0.2574039]
[1743090663507,0.15159994,86994.0,86993.0,0.2574039]
[1743090665098,0.00439994,86994.0,86993.0,0.2574039]
[1743090665498,0.00439994,86994.0,86993.0,0.3774039]
[1743090668411,4e-08,86994.0,86993.0,0.3774039]
[1743090669398,4e-08,86994.0,86993.0,0.38586858]
[1743090671306,4e-08,86994.0,86993.0,0.38582858]
[1743090671800,4e-08,86994.0,86993.0,0.26586858]
[1743090671998,4e-08,86994.0,86993.0,0.12496858]
[1743090672397,4e-08,86994.0,86993.0,0.1165039]
[1743090672608,4e-08,86994.0,86993.0,0.2623039]
[1743090672803,0.07130004,86994.0,86993.0,0.2623039]
[1743090675006,0.07130004,86994.0,86993.0,0.1165039]
[1743090676008,0.14650004,86994.0,86993.0,0.1165039]
[1743090676212,0.26148264,86994.0,86993.0,0.1165039]
[1743090677006,0.14650004,86994.0,86993.0,0.1165039]
[1743090677409,0.26148264,86994.0,86993.0,0.00152]
[1743090677612,0.1149958,86984.0,86983.0,0.27293883]
[1743090677811,0.47687581,86984.0,86983.0,0.27401883]
[1743090678205,0.62697581,86984.0,86983.0,0.27401883]
[1743090679205,0.62697581,86984.0,86983.0,0.38901593]
[1743090679410,0.51198001,86984.0,86983.0,0.38901593]
[1743090679606,0.51198001,86984.0,86983.0,0.53861593]
[1743090680002,0.62697581,86984.0,86983.0,0.53861593]
[1743090680206,0.62697581,86984.0,86983.0,0.38901593]
[1743090680707,0.62697581,86984.0,86983.0,0.27401883]
[1743090681812,0.62697581,86984.0,86983.0,0.38901593]
[1743090682214,0.00108001,86984.0,86983.0,0.74981593]
[1743090682517,0.0574934,86991.0,86990.0,0.0574939]
[1743090682716,0.17308001,86991.0,86990.0,0.0574939]
[1743090682907,0.24238001,86991.0,86990.0,0.0585739]
[1743090683109,0.24238001,86991.0,86990.0,0.00108]
[1743090683312,0.172493,86986.0,86985.0,0.1149936]
[1743090683517,0.53437301,86986.0,86985.0,0.1160736]
[1743090685415,0.53437301,86986.0,86985.0,0.1160745]
[1743090686611,4e-08,86994.0,86993.0,0.1149839]
[1743090686823,0.02546936,87007.0,87006.0,0.1149667]
[1743090687016,0.02610936,87007.0,87006.0,0.2363667]
[1743090687521,0.02610936,87007.0,87006.0,0.3831667]
[1743090688124,0.02610936,87007.0,87006.0,0.39490922]
[1743090689122,0.2048679,87013.0,87012.0,0.1149588]
[1743090689322,0.2048679,87013.0,87012.0,0.1165588]
[1743090689523,0.2048679,87013.0,87012.0,0.2582588]
[1743090690026,0.10267661,87016.0,87015.0,0.1149548]
[1743090690225,0.10267661,87016.0,87015.0,0.2365548]
[1743090690415,0.24517661,87016.0,87015.0,0.2365548]
[1743090692014,0.36013011,87016.0,87015.0,0.1165948]
[1743090692219,0.24517661,87016.0,87015.0,0.1149548]
[1743090692421,0.36601433,87016.0,87015.0,0.1165548]
[1743090692619,0.36601433,87016.0,87015.0,0.0016]
[1743090692823,0.26333822,87016.0,87015.0,0.1149548]
[1743090693020,0.257454,87016.0,87015.0,0.1149548]
[1743090693225,0.257454,87016.0,87015.0,0.1165548]
[1743090694023,0.1425,87016.0,87015.0,0.1165548]
[1743090694426,0.2574535,87016.0,87015.0,0.1165548]
[1743090695931,0.1425,87016.0,87015.0,0.1165548]
[1743090696433,0.2574535,87016.0,87015.0,0.1165548]
[1743090701923,0.2574535,87016.0,87015.0,0.1901548]
[1743090702429,0.2574535,87016.0,87015.0,0.2661548]
[1743090703835,0.36013011,87016.0,87015.0,0.2661548]
[1743090705629,0.10267661,87016.0,87015.0,0.3860748]
[1743090705940,0.01177044,87036.0,87034.0,0.1149297]
[1743090705941,0.2631284,87035.0,87034.0,0.1149297]
[1743090706129,0.1482,87035.0,87034.0,0.2667297]
[1743090706332,8e-05,87036.0,87035.0,0.1149284]
[1743090706527,8e-05,87036.0,87035.0,0.1165284]
[1743090706836,8e-05,87036.0,87035.0,0.4361203]
[1743090706837,0.1149271,87036.0,87035.0,0.4361203]
[1743090707025,0.1208403,87036.0,87035.0,0.4361203]
[1743090707225,0.0059132,87036.0,87035.0,0.4361203]
[1743090707421,0.0059132,87036.0,87035.0,0.33282836]
[1743090707626,0.1149271,87036.0,87035.0,0.27536346]
[1743090707827,0.1149271,87036.0,87035.0,0.0590635]
[1743090708025,0.2606271,87036.0,87035.0,0.0590635]
[1743090708227,0.2606271,87036.0,87035.0,0.07075912]
[1743090708621,0.2606271,87036.0,87035.0,0.14285912]
[1743090708827,0.26653734,87036.0,87035.0,0.14285912]
[1743090709034,0.15161024,87036.0,87035.0,0.14285912]
[1743090709334,0.26653734,87036.0,87035.0,0.14285912]
[1743090709536,0.26653734,87036.0,87035.0,0.21795912]
[1743090709932,0.15161024,87036.0,87035.0,0.21795912]
[1743090710133,0.1457,87036.0,87035.0,0.21795912]
[1743090710831,0.1457,87036.0,87035.0,0.29315912]
[1743090711032,0.0004,87038.0,87037.0,0.1149258]
[1743090711236,0.0004,87038.0,87037.0,0.1165258]
[1743090711440,0.1153245,87038.0,87037.0,0.2669258]
[1743090711737,0.1924245,87038.0,87037.0,0.2669258]
[1743090712137,0.2629245,87038.0,87037.0,0.2669258]
[1743090712934,0.148,87038.0,87037.0,0.2669258]
[1743090713535,0.2629245,87038.0,87037.0,0.2669258]
[1743090713835,0.148,87038.0,87037.0,0.2669258]
[1743090714737,0.2629245,87038.0,87037.0,0.2669258]
[1743090715136,0.26882872,87038.0,87037.0,0.2669258]
[1743090715337,0.26882872,87038.0,87037.0,0.1165258]
[1743090716240,0.15390422,87038.0,87037.0,0.1165258]
[1743090716537,0.26882872,87038.0,87037.0,0.2594258]
[1743090717330,0.15390422,87038.0,87037.0,0.2594258]
[1743090717533,0.00630422,87038.0,87037.0,0.2594258]
[1743090718042,0.0004,87038.0,87037.0,0.3793058]
[1743090718435,0.1153245,87038.0,87037.0,0.3793058]
[1743090718637,0.1890245,87038.0,87037.0,0.2594258]
[1743090718839,0.2604245,87038.0,87037.0,0.2594258]
[1743090720832,0.1455,87038.0,87037.0,0.2594258]
[1743090721037,0.2604245,87038.0,87037.0,0.2594258]
[1743090721343,0.0004,87038.0,87037.0,0.2594258]
[1743090723045,0.1153245,87038.0,87037.0,0.2594258]
[1743090723750,0.0004,87038.0,87037.0,0.2594258]
[1743090724650,0.1153245,87038.0,87037.0,0.2594258]
[1743090725046,0.1465,87038.0,87037.0,0.2594258]
[1743090725349,0.2614245,87038.0,87037.0,0.2594258]
[1743090726147,0.0004,87038.0,87037.0,0.2594258]
[1743090727339,8e-05,87048.0,87047.0,0.1149126]
[1743090727542,0.1149913,87048.0,87047.0,0.4773526]
[1743090727852,0.1149113,87048.0,87047.0,0.6207526]
[1743090728050,0.2595113,87048.0,87047.0,0.6207526]
[1743090728251,0.2595113,87048.0,87047.0,0.63220505]
[1743090728840,0.2595113,87048.0,87047.0,0.37389245]
[1743090729051,0.2595113,87048.0,87047.0,0.36244]
[1743090729243,0.2595113,87048.0,87047.0,0.00164]
[1743090729851,0.26544329,87048.0,87047.0,0.00164]
[1743090730451,0.26544329,87048.0,87047.0,0.1165526]
[1743090731147,0.15053199,87048.0,87047.0,0.2593526]
[1743090732245,0.26544329,87048.0,87047.0,0.2593526]
[1743090734356,0.26544329,87048.0,87047.0,0.1866526]
[1743090735255,0.26546185,87048.0,87047.0,0.2570526]
[1743090735448,0.27438915,87048.0,87047.0,0.2570526]
[1743090735959,0.15947785,87048.0,87047.0,0.2570526]
[1743090736453,0.27438915,87048.0,87047.0,0.2570526]
[1743090736644,0.15947785,87048.0,87047.0,0.2570526]
[1743090736844,0.27438915,87048.0,87047.0,0.2570526]
[1743090739151,0.27427702,87048.0,87047.0,0.2570526]
[1743090740755,0.27427702,87048.0,87047.0,0.1165526]
[1743090741158,0.27427702,87048.0,87047.0,0.00164]
[1743090741351,0.27427702,87048.0,87047.0,0.1165526]
[1743090741747,0.27427702,87048.0,87047.0,0.00164]
[1743090741956,0.1149258,87037.0,87036.0,0.1149261]
[1743090742148,0.12482098,87037.0,87036.0,0.12786702]
[1743090742346,0.13077153,87037.0,87036.0,0.12786702]
[1743090742552,0.13077153,87037.0,87036.0,0.27516702]
[1743090742959,0.01584573,87037.0,87036.0,0.27516702]
[1743090743158,0.13077153,87037.0,87036.0,0.27516702]
[1743090744156,0.01584573,87037.0,87036.0,0.27516702]
[1743090744355,0.01584573,87037.0,87036.0,0.34796702]
[1743090744558,0.01584892,87037.0,87036.0,0.34796702]
[1743090744956,0.13077472,87037.0,87036.0,0.34796702]
[1743090745157,0.27407472,87037.0,87036.0,0.27516702]
[1743090745658,0.15914892,87037.0,87036.0,0.27516702]
[1743090746555,0.15033056,87037.0,87036.0,0.27516702]
[1743090747060,0.00703056,87037.0,87036.0,0.27516702]
[1743090747260,0.00595055,87037.0,87036.0,0.27516702]
[1743090747449,0.00595055,87040.0,87039.0,0.1149231]
[1743090747654,0.00703056,87040.0,87039.0,0.1160031]
[1743090747857,0.15303056,87040.0,87039.0,0.1160031]
[1743090749063,0.26795236,87040.0,87039.0,0.1160031]
[1743090749363,0.15303056,87040.0,87039.0,0.1160031]
[1743090750655,0.29031908,87040.0,87039.0,0.1160031]
[1743090753464,0.40524088,87040.0,87039.0,0.00108]
[1743090753764,0.41411435,87040.0,87039.0,0.00108]
[1743090754152,0.172392,87036.0,87035.0,0.057464]
[1743090754357,0.18190547,87036.0,87035.0,0.1723911]
[1743090754562,0.18190547,87036.0,87035.0,0.1735111]
[1743090754761,0.18190547,87036.0,87035.0,0.1723911]
[1743090754964,0.33465602,87036.0,87035.0,0.1723911]
[1743090755562,0.1149311,87033.0,87032.0,0.057466]
[1743090755762,0.12488458,87033.0,87032.0,0.058546]
[1743090756068,0.27298458,87033.0,87032.0,0.1160124]
[1743090756265,0.27893513,87033.0,87032.0,0.1160124]
[1743090757358,0.114939,87027.0,87015.0,0.40940825]
[1743090757564,0.12457247,87027.0,87026.0,0.38881156]
[1743090758069,0.34517247,87027.0,87026.0,0.38881156]
[1743090758267,0.34517247,87027.0,87026.0,0.11587273]
[1743090758474,0.35112302,87027.0,87026.0,0.11511273]
[1743090759567,0.36600044,87027.0,87026.0,0.11511273]
[1743090759867,0.36642536,87027.0,87026.0,0.11511273]
[1743090760463,0.37649765,87027.0,87026.0,0.11511273]
[1743090760659,0.36162023,87027.0,87026.0,0.11511273]
[1743090760865,0.35154794,87027.0,87026.0,0.00017243]
[1743090761268,0.35154794,87027.0,87026.0,0.11511273]
[1743090761664,0.35154794,87027.0,87026.0,0.00093243]
[1743090761862,0.35154794,87027.0,87026.0,0.00017243]
[1743090762470,0.52277824,87027.0,87026.0,0.00017243]
[1743090762666,0.20225393,87027.0,87026.0,0.11997243]
[1743090762969,0.14700604,87027.0,87026.0,0.23571273]
[1743090763174,0.14800604,87027.0,87026.0,0.23571273]
[1743090763472,0.05648743,87027.0,87026.0,0.63023594]
[1743090763671,8e-05,87033.0,87032.0,0.1149324]
[1743090763969,0.01643755,87033.0,87032.0,0.4768124]
[1743090764163,0.01543755,87033.0,87032.0,0.7425124]
[1743090765772,0.0152222,87033.0,87032.0,0.7425124]
[1743090766474,8e-05,87033.0,87032.0,0.7425124]
[1743090769264,8e-05,87033.0,87032.0,0.50778]
[1743090769577,0.1150111,87033.0,87032.0,0.14698]
[1743090769772,0.13084266,87033.0,87032.0,0.14698]
[1743090769973,0.28252459,87033.0,87032.0,0.2619124]
[1743090773279,0.28282142,87033.0,87032.0,0.2619124]
[1743090773666,0.16789032,87033.0,87032.0,0.2619124]
[1743090773974,0.28282142,87033.0,87032.0,0.2619124]
[1743090774178,0.27263949,87033.0,87032.0,0.2619124]
[1743090774475,0.27255949,87033.0,87032.0,0.2619124]
[1743090774676,0.20055949,87033.0,87032.0,0.2619124]
[1743090774878,0.20999386,87033.0,87032.0,0.2619124]
[1743090775069,0.09506276,87033.0,87032.0,0.2619124]
[1743090775377,0.02556276,87033.0,87032.0,0.2619124]
[1743090775570,0.02556276,87033.0,87032.0,0.3315124]
[1743090775770,0.14049386,87033.0,87032.0,0.3315124]
[1743090775971,0.14684026,87033.0,87032.0,0.3315124]
[1743090776166,0.03190916,87033.0,87032.0,0.3315124]
[1743090776370,0.14684026,87033.0,87032.0,0.3315124]
[1743090776972,0.14612382,87033.0,87032.0,0.4512724]
[1743090777580,0.21922382,87033.0,87032.0,0.4512724]
[1743090777771,0.29152382,87033.0,87032.0,0.4512724]
[1743090779278,0.17659272,87033.0,87032.0,0.4512724]
[1743090779676,0.17599271,87033.0,87032.0,0.4512724]
[1743090779883,0.17703272,87033.0,87032.0,0.4512724]
[1743090780180,0.03163272,87033.0,87032.0,0.4512724]
[1743090780385,0.03059271,87033.0,87032.0,0.4512724]
[1743090780578,0.0073464,87033.0,87032.0,0.4512724]
[1743090780776,0.0157629,87033.0,87032.0,0.4512724]
[1743090780971,0.130694,87033.0,87032.0,0.3315124]
[1743090781176,0.03186932,87033.0,87032.0,0.4512724]
[1743090781371,0.03182931,87033.0,87032.0,0.4512724]
[1743090781585,0.03082931,87033.0,87032.0,0.4512724]
[1743090781782,0.14676041,87033.0,87032.0,0.4512724]
[1743090782081,0.14674085,87033.0,87032.0,0.4512724]
[1743090782778,0.01675538,87033.0,87032.0,0.4512724]
[1743090783178,0.01575538,87033.0,87032.0,0.4512724]
[1743090783374,0.00940898,87033.0,87032.0,0.4512724]
[1743090783886,8e-05,87036.0,87035.0,0.1149284]
[1743090784087,0.01035177,87036.0,87035.0,0.4768084]
[1743090784290,0.01035177,87036.0,87035.0,0.6219084]
[1743090784491,0.00927177,87036.0,87035.0,0.6219084]
[1743090784680,0.01555562,87036.0,87035.0,0.6219084]
[1743090785289,0.00919177,87036.0,87035.0,0.6219084]
[1743090785491,8e-05,87039.0,87038.0,0.1149245]
[1743090785792,0.0102199,87039.0,87038.0,0.3794245]
[1743090786090,0.00917989,87039.0,87038.0,0.3794245]
[1743090786285,0.00917989,87039.0,87038.0,0.2596645]
[1743090786490,0.00917989,87039.0,87038.0,0.3794245]
[1743090786692,0.01533614,87039.0,87038.0,0.3794245]
[1743090786988,0.01533614,87039.0,87038.0,0.2596645]
[1743090787189,0.01533614,87039.0,87038.0,0.3794245]
[1743090787689,0.00915834,87039.0,87038.0,0.3794245]
[1743090787888,0.00907834,87039.0,87038.0,0.3794245]
[1743090788285,0.00907834,87039.0,87038.0,0.2596645]
[1743090788491,0.00907834,87039.0,87038.0,0.3794245]
[1743090789293,0.01007834,87039.0,87038.0,0.3794245]
[1743090789495,0.01007834,87039.0,87038.0,0.2596645]
[1743090789889,0.01011835,87039.0,87038.0,0.1159645]
[1743090790390,0.01620856,87039.0,87038.0,0.1159645]
[1743090791190,0.16070856,87039.0,87038.0,0.1159645]
[1743090792089,0.27563166,87039.0,87038.0,0.1159645]
[1743090792396,0.16070856,87039.0,87038.0,0.1159645]
[1743090795499,0.16070856,87039.0,87038.0,0.2607645]
[1743090797092,0.15163022,87039.0,87038.0,0.2607645]
[1743090797396,0.16044008,87039.0,87038.0,0.2607645]
[1743090797603,0.0574554,87049.0,87038.0,0.2607645]
[1743090797604,8e-05,87049.0,87047.0,0.1149126]
[1743090797901,0.17281121,87048.0,87047.0,0.4770326]
[1743090798100,0.17281121,87048.0,87047.0,0.6871326]
[1743090798297,0.17281121,87048.0,87047.0,0.8068526]